bitfinex/quotes_SOLUSD_20241118
["timestamp","ask_amount","ask_price","bid_price","bid_amount"]
[1731921154215,15.7271,243.09,243.05,7.80394751]
[1731921155194,0.09367462,243.13,243.05,7.80394751]
[1731921158002,0.09367462,243.13,242.97,44.027864]
[1731921158203,0.09367462,243.13,243.05,7.80394751]
[1731921158742,16.3724,243.14,243.08,7.80394751]
[1731921159414,16.3724,243.14,243.01,23.902374]
[1731921159611,16.3724,243.14,243.07,7.80394751]
[1731921161304,16.3724,243.14,243.09,7.80394751]
[1731921162494,38.82904751,243.2,243.11,7.80394751]
[1731921162693,38.82904751,243.2,243.02,23.776884]
[1731921162694,7.80394751,243.16,243.02,23.776884]
[1731921163010,7.80394751,243.14,243.05,7.80394751]
[1731921165021,11.91684751,243.14,243.05,7.80394751]
[1731921165317,7.80394751,243.12,243.02,7.80394751]
[1731921165701,0.12549,243.17,243.06,7.80394751]
[1731921165915,7.80394751,243.17,243.08,7.80394751]
[1731921166243,7.80394751,243.17,242.98,0.09367462]
[1731921166523,7.80394751,243.17,243.08,7.80394751]
[1731921166897,4.1125,243.16,243.08,7.80394751]
[1731921167103,4.1125,243.16,243.07,7.80394751]
[1731921167302,7.80394751,243.15,243.07,7.80394751]
[1731921169324,20.137,243.2,243.11,7.80394751]
[1731921169626,0.09367462,243.19,243.11,7.80394751]
[1731921170213,0.09367462,243.19,243.03,6.4278]
[1731921170214,0.09367462,243.19,243.14,7.80394751]
[1731921171519,4.111,243.25,243.16,7.80394751]
[1731921172823,0.09367462,243.23,243.16,7.80394751]
[1731921173411,0.09367462,243.23,243.08,16.2557]
[1731921173740,0.09367462,243.23,243.16,7.80394751]
[1731921174132,16.5332,243.26,243.18,7.80394751]
[1731921174311,30.0,243.19,243.18,7.80394751]
[1731921175023,0.09367462,243.25,243.18,7.80394751]
[1731921176096,0.09367462,243.25,243.2,7.80394751]
[1731921176297,16.5332,243.26,243.24,7.80394751]
[1731921176497,15.3232,243.33,243.24,7.80394751]
[1731921176728,15.3232,243.33,243.29,7.80394751]
[1731921177223,30.0,243.3,243.24,31.21579004]
[1731921177401,3.48178137,243.38,243.29,7.80394751]
[1731921177604,0.09367462,243.38,243.31,7.80394751]
[1731921177803,21.8967,243.39,243.31,7.80394751]
[1731921178030,29.70064751,243.39,243.31,7.80394751]
[1731921178201,12.26307196,243.38,243.19,16.6506]
[1731921178407,12.16939734,243.36,243.27,12.16939734]
[1731921179104,23.902374,243.37,243.29,12.16939734]
[1731921179504,4.23449,243.37,243.29,12.16939734]
[1731921179705,16.40388734,243.37,243.29,12.16939734]
[1731921180122,4.23449,243.37,243.29,12.16939734]
[1731921180318,29.51310948,243.39,243.31,12.16939734]
[1731921181010,0.09367462,243.38,243.31,12.16939734]
[1731921181529,3.50770948,243.39,243.35,12.16939734]
[1731921181839,3.50770948,243.39,243.29,16.2611]
[1731921181840,15.654,243.45,243.37,12.16939734]
[1731921182432,19.13195568,243.45,243.37,12.16939734]
[1731921182925,23.23965568,243.45,243.37,12.16939734]
[1731921183227,19.13195568,243.45,243.39,12.16939734]
[1731921183424,3.47795568,243.45,243.43,12.16939734]
[1731921183831,20.5686,243.51,243.43,12.16939734]
[1731921184021,20.5686,243.51,243.45,12.16939734]
[1731921184331,6.6544,243.55,243.49,12.16939734]
[1731921184629,0.1,243.67,243.53,12.16939734]
[1731921184829,12.169397,243.63,243.54,12.16939734]
[1731921185041,24.33879434,243.63,243.54,12.16939734]
[1731921185216,24.33879434,243.63,243.48,12.16939734]
[1731921185217,12.16939734,243.65,243.56,12.16939734]
[1731921185733,15.79517062,243.67,243.58,12.16939734]
[1731921185914,15.69517062,243.67,243.58,12.16939734]
[1731921186228,12.16939734,243.67,243.58,12.16939734]
[1731921186528,12.26939734,243.67,243.58,12.16939734]
[1731921186713,0.09367462,243.66,243.58,12.16939734]
[1731921186909,6.2537,243.69,243.58,12.16939734]
[1731921187225,6.2537,243.69,243.6,12.16939734]
[1731921187530,0.09367462,243.68,243.62,12.16939734]
[1731921187918,0.5,243.7,243.64,12.16939734]
[1731921189013,0.5,243.7,243.53,20.0]
[1731921189206,0.5,243.7,243.64,12.16939734]
[1731921189737,0.09367462,243.69,243.64,12.16939734]
[1731921190128,0.09367462,243.69,243.53,20.0]
[1731921190328,0.09367462,243.69,243.61,12.16939734]
[1731921190534,0.5,243.7,243.66,12.16939734]
[1731921191208,0.09367462,243.69,243.66,12.16939734]
[1731921192317,23.99604862,243.69,243.66,12.16939734]
[1731921193019,23.87055862,243.69,243.66,12.16939734]
[1731921194128,23.87055862,243.69,243.53,20.0]
[1731921194439,23.87055862,243.69,243.63,12.16939734]
[1731921195531,0.12549,243.6,243.37,22.4101]
[1731921195842,12.16939734,243.53,243.44,12.16939734]
[1731921196051,23.776884,243.52,243.44,12.16939734]
[1731921196215,23.776884,243.54,243.46,12.16939734]
[1731921196410,12.16939734,243.57,243.48,12.16939734]
[1731921196615,12.16939734,243.57,243.37,22.4101]
[1731921196616,12.16939734,243.6,243.52,12.16939734]
[1731921196829,18.73429734,243.64,243.54,12.16939734]
[1731921197023,23.776884,243.63,243.54,12.16939734]
[1731921197234,12.16939734,243.66,243.56,12.16939734]
[1731921197426,23.902374,243.65,243.56,12.16939734]
[1731921197822,12.16939734,243.66,243.58,12.16939734]
[1731921198222,11.1683,243.7,243.49,22.8599]
[1731921198223,12.66939734,243.7,243.6,12.16939734]
[1731921198639,0.5,243.7,243.6,12.16939734]
[1731921198833,12.66939734,243.7,243.61,12.16939734]
[1731921199147,0.5,243.7,243.63,12.16939734]
[1731921199621,0.5,243.7,243.62,12.16939734]
[1731921200344,19.91698681,243.7,243.6,19.41698681]
[1731921200746,19.41698681,243.68,243.6,19.41698681]
[1731921201418,19.91698681,243.7,243.6,19.41698681]
[1731921201618,0.5,243.7,243.54,0.12549]
[1731921201849,0.5,243.7,243.66,19.41698681]
[1731921202022,0.5,243.7,243.68,19.41698681]
[1731921207625,0.5,243.7,243.69,19.41698681]
[1731921208240,0.5,243.7,243.69,39.41698681]
[1731921208551,15.0,243.71,243.7,20.0]
[1731921208850,15.0,243.71,243.7,39.41698681]
[1731921210230,15.0,243.71,243.7,19.41698681]
[1731921210547,15.0,243.71,243.7,38.83397362]
[1731921210746,15.0,243.71,243.7,19.41698681]
[1731921213142,15.0,243.71,243.68,19.41698681]
[1731921214741,15.0,243.71,243.6,19.41698681]
[1731921214742,15.0,243.71,243.66,19.41698681]
[1731921215356,15.0,243.71,243.68,19.41698681]
[1731921215656,15.0,243.71,243.57,22.453]
[1731921215864,15.0,243.71,243.66,19.41698681]
[1731921216851,15.0,243.71,243.68,19.41698681]
[1731921219733,15.0,243.71,243.7,19.41698681]
[1731921222458,15.0,243.71,243.7,12.12479813]
[1731921223957,15.0,243.71,243.68,12.12479813]
[1731921224358,15.0,243.71,243.57,22.453]
[1731921224567,15.0,243.71,243.68,12.12479813]
[1731921225771,15.0,243.71,243.7,12.12479813]
[1731921228745,15.0,243.71,243.68,12.12479813]
[1731921230365,15.0,243.71,243.66,12.12479813]
[1731921233791,15.0,243.71,243.68,12.12479813]
[1731921236550,15.0,243.71,243.66,12.12479813]
[1731921237068,15.0,243.71,243.68,12.12479813]
[1731921237254,15.0,243.71,243.7,12.12479813]
[1731921237948,15.0,243.71,243.6,12.12479813]
[1731921237949,15.0,243.71,243.66,12.12479813]
[1731921239367,15.0,243.71,243.68,12.12479813]
[1731921241608,15.0,243.71,243.66,12.12479813]
[1731921242778,12.12479813,243.67,243.52,16.2062]
[1731921242983,12.12479813,243.61,243.52,12.12479813]
[1731921243289,23.902374,243.58,243.49,12.12479813]
[1731921243456,30.0,243.6,243.52,12.12479813]
[1731921243661,30.0,243.6,243.54,12.12479813]
[1731921243973,0.12549,243.64,243.58,12.12479813]
[1731921244156,23.902374,243.66,243.58,12.12479813]
[1731921244358,0.12549,243.66,243.6,12.12479813]
[1731921244551,0.12549,243.67,243.6,12.12479813]
[1731921244752,0.12549,243.67,243.58,12.12479813]
[1731921245184,0.12549,243.67,243.48,12.12479813]
[1731921245185,12.12479813,243.66,243.56,12.12479813]
[1731921245482,0.12549,243.62,243.54,12.12479813]
[1731921245654,23.776884,243.64,243.56,12.12479813]
[1731921245973,0.12549,243.64,243.56,12.12479813]
[1731921246553,4.22999,243.64,243.56,12.12479813]
[1731921247564,4.22999,243.64,243.54,12.12479813]
[1731921247764,0.12549,243.62,243.54,12.12479813]
[1731921247978,12.12479813,243.61,243.52,12.12479813]
[1731921248286,0.12549,243.6,243.52,12.12479813]
[1731921249875,0.07657211,243.53,243.52,12.12479813]
[1731921250896,0.17024673,243.53,243.37,3.56489975]
[1731921251095,12.12479813,243.5,243.41,12.12479813]
[1731921251395,12.12479813,243.48,243.39,12.12479813]
[1731921251781,12.12479813,243.46,243.37,12.00409813]
[1731921252097,11.12479813,243.46,243.37,12.00409813]
[1731921253187,12.12479813,243.48,243.39,12.12479813]
[1731921253679,12.12479813,243.52,243.43,12.12479813]
[1731921253865,0.17024673,243.53,243.45,12.12479813]
[1731921253866,0.07657211,243.53,243.45,12.12479813]
[1731921254092,0.07657211,243.53,243.47,12.12479813]
[1731921255296,0.07657211,243.53,243.51,12.12479813]
[1731921261188,0.07657211,243.53,243.49,12.12479813]
[1731921262083,0.07657211,243.53,243.47,12.12479813]
[1731921263380,12.20137024,243.53,243.45,12.12479813]
[1731921265992,0.09367462,243.52,243.43,12.12479813]
[1731921266175,12.12479813,243.51,243.43,12.12479813]
[1731921267187,0.09367462,243.52,243.43,12.12479813]
[1731921267485,12.20137024,243.53,243.45,12.12479813]
[1731921267486,0.07657211,243.53,243.45,12.12479813]
[1731921267681,12.12479813,243.49,243.4,12.12479813]
[1731921268885,0.12549,243.5,243.4,12.12479813]
[1731921269094,0.12549,243.5,243.42,12.12479813]
[1731921269286,12.12479813,243.51,243.42,12.12479813]
[1731921269490,0.07657211,243.53,243.46,12.12479813]
[1731921269870,0.08950243,243.47,243.46,12.12479813]
[1731921272783,0.08950243,243.47,243.44,12.12479813]
[1731921273379,0.08950243,243.47,243.36,28.26049813]
[1731921273380,0.08950243,243.47,243.42,12.12479813]
[1731921273695,0.08950243,243.47,243.4,12.12479813]
[1731921273993,0.08950243,243.47,243.42,12.12479813]
[1731921278490,0.08950243,243.47,243.41,12.12479813]
[1731921279498,0.08950243,243.47,243.43,12.12479813]
[1731921285197,0.08950243,243.47,243.41,12.12479813]
[1731921290005,0.08027346,243.42,243.41,12.12479813]
[1731921293023,0.17394808,243.42,243.29,21.5788]
[1731921293336,12.12479813,243.41,243.31,12.12479813]
[1731921296114,0.12549,243.4,243.31,12.12479813]
[1731921296413,12.25028813,243.41,243.31,12.12479813]
[1731921297113,12.25028813,243.39,243.31,12.12479813]
[1731921297319,12.12479813,243.39,243.31,12.12479813]
[1731921297523,4.28214808,243.42,243.24,12.22479813]
[1731921297524,0.08027346,243.42,243.35,12.12479813]
[1731921299125,12.12479813,243.39,243.3,12.12479813]
[1731921299310,12.12479813,243.41,243.3,12.12479813]
[1731921299514,0.12549,243.4,243.3,12.12479813]
[1731921299734,12.12479813,243.41,243.32,12.12479813]
[1731921300123,12.12479813,243.39,243.24,0.1]
[1731921300334,0.12549,243.38,243.29,12.12479813]
[1731921301442,4.1083,243.41,243.24,0.1]
[1731921301443,12.12479813,243.41,243.31,12.12479813]
[1731921301617,12.12479813,243.41,243.33,12.12479813]
[1731921301934,0.12549,243.4,243.31,12.12479813]
[1731921302118,0.12549,243.4,243.24,12.22479813]
[1731921302119,12.12479813,243.39,243.29,12.12479813]
[1731921302313,0.12549,243.4,243.31,12.12479813]
[1731921302534,0.08027346,243.42,243.35,12.12479813]
[1731921302734,0.08027346,243.42,243.37,12.12479813]
[1731921302930,0.08027346,243.42,243.39,12.12479813]
[1731921303140,0.08027346,243.42,243.41,12.12479813]
[1731921303521,0.08027346,243.42,243.41,32.12479813]
[1731921305536,0.08965243,243.44,243.42,20.0]
[1731921305727,0.08965243,243.44,243.43,38.46568813]
[1731921305934,6.4705,243.59,243.43,38.46568813]
[1731921305935,12.12479813,243.64,243.46,0.1]
[1731921306138,12.12479813,243.64,243.46,44.47508626]
[1731921306445,12.12479813,243.62,243.46,32.22479813]
[1731921306623,12.12479813,243.62,243.46,32.12479813]
[1731921307741,12.12479813,243.62,243.46,44.24959626]
[1731921307930,16.0407,243.65,243.47,20.12549]
[1731921308132,16.0407,243.65,243.49,32.25028813]
[1731921308424,12.12479813,243.69,243.54,159.3]
[1731921308626,16.0407,243.7,243.61,12.12479813]
[1731921308821,20.1442,243.7,243.61,12.12479813]
[1731921309344,12.21847275,243.69,243.61,12.12479813]
[1731921309523,12.21847275,243.69,243.59,12.12479813]
[1731921309845,12.21847275,243.69,243.52,12.12479813]
[1731921309846,0.0835419,243.6,243.52,12.12479813]
[1731921310057,0.0835419,243.6,243.58,12.12479813]
[1731921310839,0.0835419,243.6,243.59,12.12479813]
[1731921311145,0.0835419,243.6,243.57,12.12479813]
[1731921311649,0.0835419,243.6,243.44,20.2]
[1731921311853,0.0835419,243.6,243.54,12.12479813]
[1731921312149,0.0835419,243.6,243.58,12.12479813]
[1731921313366,0.0835419,243.6,243.56,12.12479813]
[1731921318572,0.0835419,243.6,243.49,0.1]
[1731921318573,0.0835419,243.6,243.58,12.12479813]
[1731921321162,0.0835419,243.6,243.48,12.12479813]
[1731921321163,0.0835419,243.6,243.47,0.1]
[1731921321338,0.0835419,243.6,243.55,12.12479813]
[1731921321962,0.0835419,243.6,243.59,18.28679813]
[1731921322333,0.0835419,243.6,243.59,38.28679813]
[1731921322843,0.0784681,243.64,243.59,38.28679813]
[1731921322844,14.65863689,243.71,243.68,0.1]
[1731921323051,4.1002,243.89,243.71,6.45]
[1731921323265,4.1002,243.89,243.74,12.12479813]
[1731921323645,4.0999,243.91,243.74,12.12479813]
[1731921324359,4.0999,243.91,243.74,27.87919813]
[1731921324540,4.0986,243.98,243.74,27.87919813]
[1731921324858,12.12479813,243.96,243.86,12.12479813]
[1731921325438,4.0986,243.98,243.86,12.12479813]
[1731921325639,4.0983,244.0,243.86,12.12479813]
[1731921325836,12.12479813,243.96,243.86,12.12479813]
[1731921328351,12.12479813,243.98,243.88,12.12479813]
[1731921328558,12.12479813,243.98,243.9,12.12479813]
[1731921328744,16.22319813,244.0,243.9,12.12479813]
[1731921329148,12.12479813,243.98,243.9,12.12479813]
[1731921329368,16.22319813,244.0,243.9,12.12479813]
[1731921329660,12.12479813,244.0,243.92,12.12479813]
[1731921329853,6.4244,244.03,243.86,6.1108]
[1731921329854,0.08021401,243.93,243.86,6.1108]
[1731921330057,0.08021401,243.93,243.92,12.12479813]
[1731921335264,0.08021401,243.93,243.92,12.12479813]
[1731921339472,0.08021401,243.93,243.87,43.902374]
[1731921339673,0.08021401,243.93,243.87,43.776884]
[1731921339977,0.08021401,243.93,243.92,12.12479813]
[1731921341574,0.08021401,243.93,243.9,12.12479813]
[1731921343250,0.08021401,243.93,243.92,12.12479813]
[1731921347951,0.08021401,243.93,243.86,6.0108]
[1731921348168,0.08021401,243.93,243.91,12.12479813]
[1731921348357,0.08021401,243.93,243.86,6.0108]
[1731921348561,0.08021401,243.93,243.91,12.12479813]
[1731921350088,0.0836268,243.92,243.91,12.12479813]
[1731921351177,0.0836268,243.92,243.86,6.0108]
[1731921351479,0.0836268,243.92,243.91,12.12479813]
[1731921354176,4.0998,243.91,243.75,22.6074]
[1731921354373,12.12479813,243.88,243.79,12.12479813]
[1731921354664,4.0998,243.91,243.75,22.6074]
[1731921354857,4.0998,243.91,243.84,12.12479813]
[1731921355273,4.1834268,243.92,243.85,12.12479813]
[1731921355481,0.0836268,243.92,243.85,12.12479813]
[1731921355865,30.0,243.87,243.85,12.12479813]
[1731921357585,30.0,243.87,243.83,12.12479813]
[1731921358598,30.0,243.87,243.85,12.12479813]
[1731921359260,0.0836268,243.92,243.85,12.12479813]
[1731921361367,4.0998,243.91,243.83,12.12479813]
[1731921362585,12.12479813,243.89,243.79,12.12479813]
[1731921362986,12.12479813,243.89,243.81,12.12479813]
[1731921363785,4.1003,243.88,243.79,12.12479813]
[1731921364584,4.1003,243.88,243.8,12.12479813]
[1731921365304,4.1003,243.88,243.79,12.12479813]
[1731921365589,12.12479813,243.81,243.64,0.1]
[1731921365891,22.3164,243.85,243.67,12.12479813]
[1731921365892,12.12479813,243.76,243.67,12.12479813]
[1731921366187,12.12479813,243.78,243.67,12.12479813]
[1731921366371,12.12479813,243.83,243.73,12.12479813]
[1731921366569,22.3164,243.85,243.77,12.12479813]
[1731921366769,26.4173,243.85,243.77,12.12479813]
[1731921370287,26.4173,243.85,243.75,12.12479813]
[1731921370675,23.902374,243.84,243.75,12.12479813]
[1731921370878,38.54209813,243.85,243.75,12.12479813]
[1731921371084,26.4173,243.85,243.77,12.12479813]
[1731921371274,4.0993,243.94,243.82,12.12479813]
[1731921371476,12.12479813,243.97,243.87,12.12479813]
[1731921372410,4.099,243.96,243.87,12.12479813]
[1731921372590,12.12479813,243.95,243.87,12.12479813]
[1731921373300,15.7673,244.03,243.89,12.12479813]
[1731921373593,12.12479813,243.97,243.87,12.12479813]
[1731921373778,12.12479813,243.95,243.85,12.12479813]
[1731921373977,12.12479813,243.93,243.83,12.12479813]
[1731921374191,12.12479813,243.89,243.79,12.12479813]
[1731921374369,4.1003,243.88,243.79,12.12479813]
[1731921376205,4.1003,243.88,243.73,16.3135]
[1731921376206,32.63959813,243.91,243.81,12.12479813]
[1731921376415,32.63959813,243.91,243.73,16.3135]
[1731921376416,6.5028,243.93,243.85,19.38565583]
[1731921377391,15.0537,243.97,243.89,19.38565583]
[1731921377773,29.90985583,244.01,243.91,19.38565583]
[1731921378192,19.38565583,243.99,243.89,19.38565583]
[1731921379283,4.0986,243.98,243.89,19.38565583]
[1731921379801,4.0986,243.98,243.91,19.38565583]
[1731921380801,28.000674,244.0,243.91,19.38565583]
[1731921381379,19.38565583,243.99,243.89,19.38565583]
[1731921381900,4.0983,244.0,243.93,19.38565583]
[1731921385299,4.0983,244.0,243.91,19.38565583]
[1731921386886,4.0983,244.0,243.83,15.0217]
[1731921387186,4.0983,244.0,243.92,19.38565583]
[1731921387820,19.38565583,243.99,243.9,19.38565583]
[1731921388011,4.0986,243.98,243.9,19.38565583]
[1731921389497,4.0984,244.0,243.92,19.38565583]
[1731921390489,28.000374,244.02,243.92,19.38565583]
[1731921390895,19.38565583,244.01,243.9,19.38565583]
[1731921391098,19.38565583,243.97,243.88,19.38565583]
[1731921391300,19.38565583,243.97,243.86,19.38565583]
[1731921391487,24.002374,244.0,243.89,19.38565583]
[1731921391488,19.38565583,243.99,243.89,19.38565583]
[1731921392595,23.902374,244.0,243.89,19.38565583]
[1731921392596,19.38565583,243.97,243.89,19.38565583]
[1731921392907,19.38565583,243.97,243.87,19.38565583]
[1731921393580,19.38565583,243.97,243.79,22.249]
[1731921393787,19.38565583,243.97,243.87,19.38565583]
[1731921394206,4.099,243.96,243.87,19.38565583]
[1731921396190,4.099,243.96,243.79,22.249]
[1731921396508,4.099,243.96,243.88,12.10950925]
[1731921396894,52.63008325,243.95,243.84,12.10950925]
[1731921397214,52.63008325,243.95,243.79,22.249]
[1731921397215,12.10950925,243.88,243.79,12.10950925]
[1731921397387,30.0,243.94,243.77,0.2]
[1731921397587,16.6182,243.95,243.87,12.10950925]
[1731921397803,16.6182,243.95,243.89,12.10950925]
[1731921398108,16.6182,243.95,243.79,0.1]
[1731921398316,16.6182,243.95,243.89,12.10950925]
[1731921398889,16.6182,243.95,243.8,0.09367462]
[1731921399100,0.1,244.03,243.93,12.10950925]
[1731921399101,28.05220925,244.03,243.93,12.10950925]
[1731921399314,4.0981,244.02,243.93,12.10950925]
[1731921399613,12.10950925,244.01,243.91,12.10950925]
[1731921400895,16.20780925,244.01,243.91,12.10950925]
[1731921401295,16.20780925,244.01,243.84,20.0]
[1731921401503,16.20780925,244.01,243.91,12.10950925]
[1731921402312,16.20780925,244.01,243.84,20.0]
[1731921402488,16.20780925,244.01,243.91,12.10950925]
[1731921404301,12.10950925,243.97,243.87,12.10950925]
[1731921405002,12.10950925,243.97,243.78,16.3373]
[1731921405209,12.10950925,243.97,243.87,12.10950925]
[1731921405589,4.099,243.96,243.87,12.10950925]
[1731921406000,12.10950925,243.95,243.78,16.3373]
[1731921406215,12.10950925,243.95,243.84,12.10950925]
[1731921406514,4.099,243.96,243.82,12.10950925]
[1731921406515,12.10950925,243.91,243.82,12.10950925]
[1731921406888,12.10950925,243.89,243.72,22.801]
[1731921407305,12.10950925,243.89,243.78,12.10950925]
[1731921407812,12.10950925,243.85,243.76,12.10950925]
[1731921408894,12.10950925,243.85,243.66,22.1856]
[1731921409101,4.101,243.84,243.75,12.10950925]
[1731921409295,4.101,243.84,243.66,22.2856]
[1731921409495,4.101,243.84,243.76,12.10950925]
[1731921409810,4.101,243.84,243.66,26.12018164]
[1731921409811,4.101,243.84,243.67,20.0]
[1731921410115,4.101,243.84,243.76,12.10950925]
[1731921411303,4.101,243.84,243.67,20.0]
[1731921411494,4.101,243.84,243.74,12.10950925]
[1731921411908,4.101,243.84,243.76,12.10950925]
[1731921416305,4.1007,243.86,243.8,12.10950925]
[1731921416626,4.1007,243.86,243.82,12.10950925]
[1731921416992,4.1,243.9,243.82,12.10950925]
[1731921417605,12.10950925,243.89,243.8,12.10950925]
[1731921417808,12.10950925,243.83,243.66,22.1856]
[1731921417997,12.10950925,243.81,243.71,12.10950925]
[1731921418600,4.1017,243.8,243.71,12.10950925]
[1731921419314,12.10950925,243.77,243.69,12.10950925]
[1731921419516,12.10950925,243.77,243.67,12.10950925]
[1731921420206,12.10950925,243.77,243.58,0.1]
[1731921420514,12.10950925,243.71,243.63,12.10950925]
[1731921421510,4.1034,243.7,243.63,12.10950925]
[1731921422397,12.10950925,243.69,243.61,12.10950925]
[1731921422617,16.391,243.74,243.65,12.10950925]
[1731921422994,16.391,243.74,243.67,12.10950925]
[1731921423210,28.50050925,243.74,243.65,12.10950925]
[1731921423604,4.1029,243.73,243.65,12.10950925]
[1731921424423,4.1029,243.73,243.63,12.10950925]
[1731921424610,4.1029,243.73,243.65,12.10950925]
[1731921426221,12.10950925,243.72,243.63,12.10950925]
[1731921426822,12.10950925,243.7,243.48,49.77222087]
[1731921427002,12.10950925,243.66,243.48,21.5931]
[1731921427206,12.10950925,243.66,243.56,12.10950925]
[1731921427538,23.776884,243.65,243.56,12.10950925]
[1731921427821,23.776884,243.61,243.52,12.10950925]
[1731921428022,12.10950925,243.58,243.5,12.10950925]
[1731921428202,12.10950925,243.58,243.48,12.10950925]
[1731921428617,23.902374,243.55,243.46,12.10950925]
[1731921428824,23.776884,243.53,243.44,12.10950925]
[1731921429325,12.10950925,243.56,243.46,12.10950925]
[1731921429624,23.776884,243.57,243.48,12.10950925]
[1731921429917,23.776884,243.57,243.38,0.1]
[1731921429918,23.776884,243.57,243.5,12.10950925]
[1731921430915,23.776884,243.57,243.48,12.10950925]
[1731921431137,4.1057,243.56,243.48,12.10950925]
[1731921433033,0.12549,243.53,243.36,22.3302]
[1731921433208,12.10950925,243.5,243.42,12.10950925]
[1731921434026,12.10950925,243.5,243.4,12.10950925]
[1731921434229,12.10950925,243.5,243.42,12.10950925]
[1731921435330,16.21630925,243.5,243.42,12.10950925]
[1731921435633,4.1068,243.5,243.42,12.10950925]
[1731921437234,16.21630925,243.5,243.42,12.10950925]
[1731921437729,6.21849,243.53,243.46,12.10950925]
[1731921437730,6.093,243.53,243.46,12.10950925]
[1731921437920,6.093,243.53,243.48,12.10950925]
[1731921438239,6.093,243.53,243.46,12.10950925]
[1731921438711,10.1993,243.53,243.46,12.10950925]
[1731921439325,6.4832,243.59,243.52,12.10950925]
[1731921439527,6.4832,243.59,243.54,12.10950925]
[1731921439734,16.2356,243.62,243.56,12.10950925]
[1731921439933,12.10950925,243.6,243.49,12.10950925]
[1731921441132,28.34510925,243.62,243.53,12.10950925]
[1731921441436,22.907678,243.65,243.6,12.10950925]
[1731921441437,6.4832,243.65,243.6,12.10950925]
[1731921442136,4.1039,243.67,243.6,12.10950925]
[1731921443634,16.3722,243.73,243.66,12.10950925]
[1731921443838,12.10950925,243.76,243.67,12.10950925]
[1731921444045,12.10950925,243.74,243.65,12.10950925]
[1731921444219,12.10950925,243.74,243.63,12.10950925]
[1731921444622,12.10950925,243.74,243.65,12.10950925]
[1731921444923,12.10950925,243.76,243.65,12.10950925]
[1731921445118,4.1026,243.75,243.65,12.10950925]
[1731921445533,10.7054,243.78,243.69,12.10950925]
[1731921445720,0.09367462,243.77,243.67,12.10950925]
[1731921446139,12.10950925,243.76,243.67,12.10950925]
[1731921446330,0.09367462,243.77,243.67,12.10950925]
[1731921446532,12.10950925,243.76,243.67,12.10950925]
[1731921446921,23.776884,243.75,243.67,12.10950925]
[1731921447129,4.1027,243.74,243.67,12.10950925]
[1731921447439,4.1027,243.74,243.63,12.10950925]
[1731921447440,12.23499925,243.72,243.63,12.10950925]
[1731921447629,12.10950925,243.68,243.59,12.10950925]
[1731921448023,23.776884,243.73,243.63,12.10950925]
[1731921448214,35.88639325,243.73,243.63,12.10950925]
[1731921448417,23.776884,243.7,243.61,12.10950925]
[1731921448722,23.776884,243.68,243.59,12.10950925]
[1731921448923,23.776884,243.66,243.57,12.10950925]
[1731921449123,23.776884,243.66,243.59,12.10950925]
[1731921450239,23.776884,243.66,243.57,12.10950925]
[1731921450420,27.881084,243.66,243.57,12.10950925]
[1731921451335,23.776884,243.64,243.55,12.10950925]
[1731921451540,12.10950925,243.59,243.41,6.016]
[1731921451729,12.10950925,243.59,243.51,12.10950925]
[1731921451928,12.10950925,243.61,243.51,12.10950925]
[1731921452650,16.6406,243.67,243.54,12.10950925]
[1731921452938,0.12549,243.64,243.54,12.10950925]
[1731921453322,12.10950925,243.63,243.54,12.10950925]
[1731921453850,0.12549,243.64,243.54,12.10950925]
[1731921454018,0.12549,243.64,243.56,12.10950925]
[1731921454423,16.6406,243.67,243.49,24.027864]
[1731921454623,28.75010925,243.67,243.56,12.10950925]
[1731921454829,0.12549,243.64,243.54,12.10950925]
[1731921455634,12.10950925,243.65,243.56,12.10950925]
[1731921456833,0.09367462,243.64,243.56,12.10950925]
[1731921457317,0.2,243.71,243.49,23.776884]
[1731921457318,12.10950925,243.71,243.62,12.10950925]
[1731921457525,12.10950925,243.68,243.58,12.10950925]
[1731921457819,4.1033,243.71,243.56,12.10950925]
[1731921457820,4.19797462,243.65,243.56,12.10950925]
[1731921458220,12.10950925,243.64,243.54,12.10950925]
[1731921458443,12.10950925,243.62,243.54,12.10950925]
[1731921459052,12.10950925,243.62,243.52,12.10950925]
[1731921460526,16.21430925,243.62,243.52,12.10950925]
[1731921460950,0.12549,243.61,243.48,22.4581]
[1731921461134,12.10950925,243.6,243.51,12.10950925]
[1731921461327,0.12549,243.61,243.51,12.10950925]
[1731921462044,4.105,243.61,243.51,12.10950925]
[1731921462633,12.10950925,243.6,243.48,22.4581]
[1731921462833,12.10950925,243.6,243.5,12.10950925]